[Event "2nd Serbia Open Masters 2022"]
[Site "Novi Sad"]
[Date "2022.06.30"]
[Round "3.21"]
[White "Kadric, Denis"]
[Black "Beydullayeva, Govhar"]
[Result "1-0"]
[ECO "C54"]
[WhiteElo "2576"]
[BlackElo "2384"]
[Annotator "TA"]
[PlyCount "69"]
[EventDate "2022.06.28"]
[EventType "swiss"]
[EventCountry "SRB"]
[SourceTitle "playchess.com"]
[Source "ChessBase"]
[SourceQuality "1"]
[TimeControl "40/5400+30:900+30"]

{[%evp 10,69,8,8,19,16,14,4,20,16,26,16,18,17,14,4,21,21,21,20,21,30,26,34,60,52,70,70,60,79,78,89,294,303,399,397,678,686,665,692,691,692,678,685,663,679,658,658,656,651,625,303,314,174,169,130,131,146,1172,1193,1124,715]} 1. e4 {[%emt 0:02:44]} e5 {[%emt 0:02:05]} 2. Nf3 {[%emt 0:00:14]} Nc6 {[%emt 0:00:04]} 3. Bc4 {[%emt 0:00:35]} Bc5 {[%emt 0:00:29]} 4. O-O {[%emt 0:00:45]} Nf6 {[%emt 0:00:12]} 5. d3 {[%emt 0:00:02]} d6 {[%emt 0:00:18]} 6. c3 {[%emt 0:00:29]} a5 {[%emt 0:00:16] C54: Giuoco Piano: 4 c3 Nf6, main lines with 5 d4 and 5 d3.} 7. Re1 {[%emt 0:00:27]} O-O {[%emt 0:00:33]} 8. h3 {[%emt 0:00:07]} Be6 {[%emt 0:00:10] The position is equal.} 9. Bb5 {[%emt 0:00:06]} Ba7 {[%emt 0:00:10] [#]} 10. Ba4 $146 {[%emt 0:05:43]} ({Predecessor:} 10. Nbd2 Ne7 11. d4 Ng6 12. Ba4 Nh5 13. Nf1 Nhf4 14. Ng3 c6 15. Bc2 Qd7 16. Nf5 {1-0 (34) Dominguez Perez,L (2752)-So,W (2772) Berlin 2022}) 10... Ne7 {[%emt 0:00:58]} 11. d4 {[%emt 0:02:21]} Ng6 {[%emt 0:02:15]} 12. Bc2 {[%emt 0:07:45]} h6 {[%emt 0:05:47]} 13. Be3 {[%emt 0:02:11]} c6 {[%emt 0:03:49]} 14. Nbd2 {[%emt 0:00:06]} Re8 {[%emt 0:00:38]} 15. Nf1 {[%emt 0:01:55]} Qc7 {[%emt 0:03:30]} 16. Ng3 {[%emt 0:00:06]} b5 {[%emt 0:03:38]} 17. Qd2 {[%emt 0:05:43]} a4 {[%emt 0:08:42]} 18. Nf5 {[%emt 0:03:10]} Bxf5 {[%emt 0:05:55]} 19. exf5 {[%emt 0:00:22]} Nf8 {[%emt 0:00:23]} 20. Bxh6 $1 {[%emt 0:00:09]} gxh6 {[%emt 0:03:44]} (20... N8h7 $16) 21. Qxh6 $18 {[%emt 0:00:06]} (21. dxe5 dxe5 22. Qxh6 N8h7 $15) 21... N8d7 {[%emt 0:20:04]} 22. g4 {[%emt 0:16:05][%cal Bg2g4,Bg4g5][%mdl 32] Hoping for g5. The board is on fire.} exd4 $2 {[%emt 0:10:41] [#]} (22... d5) 23. g5 $1 {[%emt 0:00:06]} Rxe1+ {[%emt 0:02:32]} 24. Rxe1 {[%emt 0:00:01]} Qd8 {[%emt 0:01:34][%cal Od4c3]} 25. Kh1 {[%emt 0:02:55]} Qf8 {[%emt 0:07:09] [#] And now ...Qxh6 would win.} 26. Qh4 {[%emt 0:00:05]} (26. Qxf8+ Kxf8 27. cxd4 (27. gxf6 $2 dxc3 28. bxc3 Bxf2 $17) 27... Nh5 $15) 26... Qg7 {[%emt 0:01:59][%cal Oa8e8]} 27. gxf6 {[%emt 0:01:20]} Qxf6 {[%emt 0:00:12]} 28. Ng5 {[%emt 0:06:23]} Qh8 {[%emt 0:02:23]} 29. Qg3 {[%emt 0:00:42] Threatening mate with Ne6+.} Qg7 {[%emt 0:00:16]} 30. Qxd6 {[%emt 0:05:38]} (30. Re7 $142 dxc3 31. Rxf7) 30... d3 {[%emt 0:01:19] [#]} 31. Bxd3 $1 {[%emt 0:01:03]} Bxf2 {[%emt 0:00:12]} 32. Re2 {[%emt 0:00:18]} (32. Qxd7 Bxe1 33. Ne4 Qh6 $19) (32. Qxc6 Rd8 33. Nxf7 Kxf7 34. Bxb5 (34. Rf1 Ne5 $17) 34... Bxe1 $11) 32... Qxg5 {[%emt 0:07:54][%csl Gf2][%cal Rg5g1]} 33. Rxf2 {[%emt 0:00:01]} Qc1+ $2 {[%emt 0:00:41][%mdl 8192]} (33... Qf6 $16 34. Rg2+ (34. Qxd7 Rd8 $11) 34... Kh8) 34. Kh2 {[%emt 0:02:27]} Kh8 {[%emt 0:04:26]} 35. Qxd7 {[%emt 0:02:25] Weighted Error Value: White=0.17 (very precise) /Black=0.23 (precise)} 1-0

[Event "2nd Serbia Open Masters 2022"]
[Site "Novi Sad"]
[Date "2022.06.30"]
[Round "3.22"]
[White "Basso, Pier Luigi"]
[Black "Narva, Mai"]
[Result "0-1"]
[ECO "E10"]
[WhiteElo "2570"]
[BlackElo "2385"]
[Annotator "TA"]
[PlyCount "98"]
[EventDate "2022.06.28"]
[EventType "swiss"]
[EventCountry "SRB"]
[SourceTitle "playchess.com"]
[Source "ChessBase"]
[SourceQuality "1"]
[TimeControl "40/5400+30:900+30"]

{[%evp 9,98,32,27,14,22,17,16,18,14,19,11,20,16,17,12,7,10,21,19,35,38,37,24,31,41,16,31,10,25,24,19,20,21,16,12,0,6,0,0,0,0,0,0,0,0,0,0,0,23,5,12,-42,14,0,0,-28,0,0,0,0,2,4,12,8,52,8,66,-302,-310,-306,-310,-304,-302,-302,-295,-291,-288,-281,-277,-309,-274,-425,-415,-570,-554,-666,-597,-911,-908,-1089,-933]} 1. d4 {[%emt 0:00:04]} Nf6 {[%emt 0:02:31]} 2. c4 {[%emt 0:00:50]} e6 {[%emt 0:00:10]} 3. Nf3 {[%emt 0:00:23]} c5 {[%emt 0:00:22]} 4. d5 {[%emt 0:00:15]} b5 {[%emt 0:00:27]} 5. e4 {[%emt 0:00:55]} Nxe4 {[%emt 0:00:31]} 6. Bd3 {[%emt 0:00:18] E10: Blumenfeld Gambit.} Nf6 {[%emt 0:00:22]} 7. O-O {[%emt 0:04:43] 7.Nc3 might become the main line.} (7. cxb5 Nxd5 8. Be4 Bb7 $17) 7... bxc4 {[%emt 0:01:28]} 8. Bxc4 {[%emt 0:04:25] The position is equal.} Ba6 {[%emt 0:00:21]} 9. Bxa6 {[%emt 0:00:44]} Nxa6 {[%emt 0:00:07]} 10. Nc3 {[%emt 0:13:13]} Qc8 {[%emt 0:03:21]} 11. dxe6 {[%emt 0:19:24]} fxe6 {[%emt 0:00:51]} 12. Bg5 {[%emt 0:00:05]} (12. Ne5 {seems wilder.} Be7 13. Bg5 Qb7 14. Bxf6 Bxf6 15. Ne4) 12... Be7 {[%emt 0:12:26]} 13. Ne5 {[%emt 0:03:05]} O-O {[%emt 0:08:08] [#]} 14. Nxd7 {[%emt 0:05:14][%mdl 64] Pin} Rd8 {[%emt 0:07:50]} 15. Nxf6+ {[%emt 0:01:46]} gxf6 {[%emt 0:05:34]} 16. Bd2 {[%emt 0:00:06]} Nb4 {[%emt 0:04:59] [#]} 17. Qe2 $146 {[%emt 0:04:55]} ({Predecessor:} 17. Qg4+ Kh8 18. Rad1 Nd3 19. Bh6 Rg8 20. Qe4 c4 21. b3 Rg6 22. Be3 Ne5 23. Bd4 {0-1 (32) Beradze,I (2466)-Paravyan,D (2531) Batumi 2017}) 17... Kh8 {[%emt 0:07:10]} (17... Qa6 {feels hotter.} 18. Qf3 Nc2 19. Bh6 Kh8) 18. Bh6 {[%emt 0:03:43]} Nc6 {[%emt 0:05:15]} 19. Rad1 {[%emt 0:07:14]} (19. Qg4 Rg8 20. Qh5 Qb7 $15) 19... Nd4 {[%emt 0:05:42]} 20. Qe4 {[%emt 0:00:42]} (20. Qg4 Rg8 21. Qe4 Rb8 $15) 20... Qc7 {[%emt 0:01:31]} 21. Rfe1 {[%emt 0:04:30]} ({But not} 21. Qg4 Rg8 22. Qe4 f5 $15) 21... Bd6 {[%emt 0:06:30]} 22. Qh4 {[%emt 0:24:56]} Qf7 {[%emt 0:01:59]} 23. Be3 {[%emt 0:00:00]} Be5 {[%emt 0:05:17]} 24. Qh3 {[%emt 0:00:00]} Rab8 {[%emt 0:03:25]} 25. Bc1 {[%emt 0:00:00]} Qg6 {[%emt 0:02:43]} 26. f4 {[%emt 0:00:00]} Bc7 {[%emt 0:01:53]} 27. Kh1 {[%emt 0:00:00]} Ba5 {[%emt 0:05:10]} 28. Rf1 {[%emt 0:00:00]} Bxc3 {[%emt 0:03:32]} 29. Qxc3 {[%emt 0:00:00]} Rd5 {[%emt 0:00:40]} 30. Qd3 {[%emt 0:00:00]} (30. Rde1 $11) 30... Nf5 {[%emt 0:02:05]} ({Black should play} 30... Qxd3 $15 31. Rxd3 Ne2) 31. Qh3 {[%emt 0:00:00]} Rbd8 {[%emt 0:00:39]} 32. Rxd5 {[%emt 0:00:00]} Rxd5 $40 {[%emt 0:00:25][%mdl 128] Black mounts an attack.} 33. b3 {[%emt 0:00:00]} Kg7 {[%emt 0:02:24]} 34. g4 {[%emt 0:00:00]} Nd6 {[%emt 0:00:58]} 35. f5 {[%emt 0:00:00]} Qf7 {[%emt 0:00:41]} 36. Bb2 {[%emt 0:01:55]} Rd2 {[%emt 0:00:28]} 37. Bc3 {[%emt 0:00:46]} Rc2 {[%emt 0:00:27]} (37... Rxa2 $11 38. fxe6 Qxe6 39. Rxf6 Qd5+ 40. Kg1 Kg8) 38. Qd3 $2 {[%emt 0:00:38][%mdl 8192] White does not recover from this.} (38. fxe6 $14 Qxe6 39. Bxf6+ (39. Rxf6 Qd5+ 40. Kg1 Kg8 $16) 39... Kg8 40. Qf3) 38... Qb7+ $19 {[%emt 0:00:15]} 39. Qf3 {[%emt 0:01:07]} Rxc3 $1 {[%emt 0:00:43]} 40. Qxb7+ {[%emt 0:00:00]} Nxb7 {[%emt 0:00:00][%mdl 4096] Endgame KRN-KR} 41. Rd1 {[%emt 0:00:04]} Na5 {[%emt 0:03:56] [#] ...exf5 is the strong threat.} 42. Rd7+ {[%emt 0:04:06]} Kh6 {[%emt 0:00:29]} ({Not} 42... Kf8 $2 43. fxe6 Rc1+ 44. Kg2) 43. fxe6 {[%emt 0:00:04]} Re3 {[%emt 0:00:35]} 44. e7 {[%emt 0:01:05]} Nc6 {[%emt 0:01:32]} 45. Rd6 {[%emt 0:00:03]} (45. h4 $142) 45... Nxe7 {[%emt 0:00:36]} 46. Rxf6+ {[%emt 0:00:03]} Kg5 {[%emt 0:00:46] Black is clearly winning.} 47. Ra6 {[%emt 0:00:03]} Kxg4 {[%emt 0:01:01]} 48. Kg2 {[%emt 0:00:13]} Re2+ {[%emt 0:00:19]} 49. Kg1 {[%emt 0:00:01]} Nf5 {[%emt 0:02:20] Weighted Error Value: White=0.44/Black=0.08 (flawless)} 0-1

[Event "2nd Serbia Open Masters 2022"]
[Site "Novi Sad"]
[Date "2022.06.30"]
[Round "3.23"]
[White "Pasti, Aron"]
[Black "Ivanisevic, Ivan"]
[Result "1/2-1/2"]
[ECO "C88"]
[WhiteElo "2380"]
[BlackElo "2550"]
[Annotator "TA"]
[PlyCount "93"]
[EventDate "2022.06.28"]
[EventType "swiss"]
[EventCountry "SRB"]
[SourceTitle "playchess.com"]
[Source "ChessBase"]
[SourceQuality "1"]
[TimeControl "40/5400+30:900+30"]

{[%evp 14,93,17,17,40,33,28,23,41,34,22,33,65,22,31,33,44,44,36,44,52,48,59,20,14,16,1,13,29,25,23,0,0,0,0,0,0,0,0,0,0,0,0,0,0,0,0,0,0,0,0,0,0,0,0,0,0,0,0,0,0,0,0,0,0,0,0,0,0,0,0,0,0,0,0,0,0,0,0,0,0,0]} 1. e4 {[%emt 0:00:13]} e5 {[%emt 0:00:05]} 2. Nf3 {[%emt 0:00:04]} Nc6 {[%emt 0:00:06]} 3. Bb5 {[%emt 0:00:03]} a6 {[%emt 0:00:07]} 4. Ba4 {[%emt 0:00:05]} Nf6 {[%emt 0:00:06]} 5. O-O {[%emt 0:00:04]} Be7 {[%emt 0:00:05]} 6. Re1 {[%emt 0:00:04]} b5 {[%emt 0:00:05]} 7. Bb3 {[%emt 0:00:13]} O-O {[%emt 0:00:06]} 8. a4 {[%emt 0:00:04][%cal Ba2a4,Ba4b5][%mdl 32] Strongly threatening axb5.} Na5 {[%emt 0:00:04] C88: Closed Ruy Lopez: Anti-Marshall Systems.} 9. axb5 {[%emt 0:00:46] has lost popularity (9.Ba2).} Nxb3 {[%emt 0:00:24]} 10. cxb3 {[%emt 0:00:04]} Bb7 {[%emt 0:00:11] White has an edge.} 11. bxa6 $1 {[%emt 0:07:20]} Bxe4 {[%emt 0:05:27]} 12. Nc3 {[%emt 0:06:23]} Bb7 {[%emt 0:05:34]} 13. Nxe5 {[%emt 0:04:32] And now Qe2 would win.} ({Worse is} 13. axb7 Rxa1 14. Rxe5 Bd6 $17) (13. Qe2 $5 {[%cal Rf3e5]}) 13... Bxa6 {[%emt 0:00:39] A strong pair of Bishops.} 14. d4 {[%emt 0:00:49] [#]} Re8 $146 {[%emt 0:06:26]} ({Predecessor:} 14... Bb7 15. Rxa8 Bxa8 16. Bg5 d6 17. Ng4 Nd5 18. Bxe7 Nxe7 19. f3 Ng6 20. b4 Qb8 {½-½ (35) Palac,M (2571)-Halkias,S (2555) Warsaw 2013}) 15. Bg5 {[%emt 0:11:02]} Bb7 {[%emt 0:04:52] Inhibits Qf3.} 16. Rxa8 {[%emt 0:00:31]} Bxa8 {[%emt 0:01:17]} 17. b4 {[%emt 0:11:00]} d6 {[%emt 0:06:03]} 18. Nd3 {[%emt 0:04:47]} h6 {[%emt 0:00:45]} 19. Bh4 {[%emt 0:09:43]} g5 {[%emt 0:03:15]} 20. Bg3 {[%emt 0:00:55]} Bf8 {[%emt 0:00:07]} 21. b5 {[%emt 0:05:25]} Nd5 {[%emt 0:05:04] Inhibits Nb4.} 22. h4 {[%emt 0:06:25]} Rxe1+ {[%emt 0:03:52] The position is equal.} 23. Nxe1 {[%emt 0:00:06]} Qe8 {[%emt 0:01:06]} 24. hxg5 {[%emt 0:02:39]} hxg5 {[%emt 0:00:05]} 25. Qe2 {[%emt 0:02:03]} Qxe2 {[%emt 0:02:10]} 26. Nxe2 {[%emt 0:00:02]} Bg7 {[%emt 0:01:22]} 27. Nc2 {[%emt 0:01:52]} f5 {[%emt 0:00:40]} 28. f3 {[%emt 0:01:04]} Kf7 {[%emt 0:00:26]} 29. Be1 {[%emt 0:00:07]} Ke6 {[%emt 0:01:04]} 30. Kf2 {[%emt 0:08:08]} Bb7 {[%emt 0:02:13]} 31. Ba5 {[%emt 0:01:02]} Bf6 {[%emt 0:06:19]} 32. g3 {[%emt 0:02:51]} Bd8 {[%emt 0:16:48]} 33. Ne3 {[%emt 0:05:16]} Nxe3 {[%emt 0:05:09]} 34. Kxe3 $11 {[%emt 0:00:04][%mdl 4096] Endgame KBB-KBN} Bd5 {[%emt 0:00:04]} 35. f4 {[%emt 0:01:18]} g4 {[%emt 0:03:17]} 36. Kd3 {[%emt 0:01:41]} Bg2 {[%emt 0:00:15]} 37. Ke3 {[%emt 0:03:08]} Kd7 {[%emt 0:00:28]} 38. Nc3 {[%emt 0:03:03]} Kc8 {[%emt 0:03:10]} 39. Kf2 {[%emt 0:00:55]} Bf3 {[%emt 0:00:16]} 40. Ke3 {[%emt 0:00:00]} Kb7 {[%emt 0:00:00]} 41. Nb1 {[%emt 0:10:49]} Bd1 {[%emt 0:04:38]} 42. Kd3 {[%emt 0:00:32]} Bf6 {[%emt 0:02:10]} 43. Nd2 {[%emt 0:03:02]} Ba4 {[%emt 0:05:29]} 44. Kc4 {[%emt 0:00:30] [#] aiming for b3.} Bd1 {[%emt 0:00:06]} 45. Kd3 {[%emt 0:00:20]} Ba4 {[%emt 0:04:14]} 46. Kc4 {[%emt 0:00:05] Threatens to win with b3.} Bd1 {[%emt 0:00:04]} 47. Kd3 {[%emt 0:00:04] Weighted Error Value: White=0.04 (flawless) /Black=0.03 (flawless)} 1/2-1/2

[Event "2nd Serbia Open Masters 2022"]
[Site "Novi Sad"]
[Date "2022.06.30"]
[Round "3.24"]
[White "Harsha Bharathakoti"]
[Black "Maltsevskaya, Aleksandra"]
[Result "1-0"]
[ECO "E06"]
[WhiteElo "2547"]
[BlackElo "2396"]
[Annotator "TA"]
[PlyCount "47"]
[EventDate "2022.06.28"]
[EventType "swiss"]
[EventCountry "SRB"]
[SourceTitle "playchess.com"]
[Source "ChessBase"]
[SourceQuality "1"]
[TimeControl "40/5400+30:900+30"]

{[%evp 13,47,0,16,9,0,28,33,35,5,28,86,63,64,85,101,71,91,77,82,64,64,64,64,58,75,78,87,101,100,110,496,497,542,535,541,531]} 1. d4 {[%emt 0:02:42]} Nf6 {[%emt 0:00:03]} 2. c4 {[%emt 0:00:10]} e6 {[%emt 0:00:11]} 3. g3 {[%emt 0:00:43]} d5 {[%emt 0:06:11]} 4. Bg2 {[%emt 0:00:37]} dxc4 {[%emt 0:00:08]} 5. Nf3 {[%emt 0:00:42]} Be7 {[%emt 0:04:09]} 6. Nc3 {[%emt 0:11:00]} O-O {[%emt 0:07:28]} 7. Ne5 {[%emt 0:00:04]} Nc6 {[%emt 0:03:34]} 8. Bxc6 {[%emt 0:01:47] E06: Closed Catalan: Early deviations.} bxc6 {[%emt 0:03:40]} 9. Nxc6 {[%emt 0:00:28] Pair of Knights!} Qe8 {[%emt 0:00:09]} 10. Nxe7+ {[%emt 0:00:04] White is slightly better.} Qxe7 {[%emt 0:00:07]} 11. Qa4 {[%emt 0:00:04]} e5 {[%emt 0:10:14]} (11... c5 $11 12. dxc5 Qxc5) 12. dxe5 $16 {[%emt 0:10:57]} Qxe5 {[%emt 0:00:23]} 13. Qxc4 {[%emt 0:00:05]} Qh5 {[%emt 0:04:17]} 14. f3 {[%emt 0:20:00]} ({Of course not} 14. Qxc7 $6 Bh3 $14) 14... Be6 {[%emt 0:13:20]} 15. Qf4 {[%emt 0:06:58]} Rfe8 {[%emt 0:09:26]} 16. O-O {[%emt 0:06:38]} Nd5 {[%emt 0:04:23]} 17. Nxd5 {[%emt 0:00:15] [#]} Qxd5 $146 {[%emt 0:00:08]} ({Predecessor:} 17... Bxd5 18. e4 Bc4 19. Rf2 c6 20. Be3 a5 21. Rc2 Qb5 22. b3 Be6 23. Rc5 Qe2 {1-0 (31) Kardashevskiy,E (2382)-Jaeel,A (2145) Moscow 2019}) 18. Bd2 {[%emt 0:12:22]} ({Not} 18. Qxc7 $2 Bh3 19. Qc2 (19. Re1 $2 Rxe2 20. Rxe2 Qd1+ 21. Kf2 Qf1+ 22. Ke3 Re8+ 23. Kd4 Qxe2 $19) 19... Bxf1 20. Kxf1 Rad8 $19) 18... Rad8 {[%emt 0:22:59] [#]} 19. Bc3 {[%emt 0:09:23]} Bh3 {[%emt 0:00:25] [#]} 20. Rfe1 {[%emt 0:02:13]} Qc5+ {[%emt 0:00:31]} 21. e3 {[%emt 0:00:03]} Re6 $2 {[%emt 0:00:57][%mdl 8192]} (21... Rd3 $16) 22. Qh4 $1 $18 {[%emt 0:03:27][%csl LRd8,LRh3] White is clearly winning.} f6 {[%emt 0:04:48]} 23. Qxh3 {[%emt 0:00:06]} Rxe3 {[%emt 0:00:06]} 24. Kg2 {[%emt 0:01:39] Weighted Error Value: White=0.04 (flawless) /Black=0.66} 1-0

[Event "2nd Serbia Open Masters 2022"]
[Site "Novi Sad"]
[Date "2022.06.30"]
[Round "3.25"]
[White "Petkov, Momchil"]
[Black "Savanovic, Aleksandar"]
[Result "1-0"]
[ECO "C54"]
[WhiteElo "2494"]
[BlackElo "2366"]
[Annotator "TA"]
[PlyCount "71"]
[EventDate "2022.06.28"]
[EventType "swiss"]
[EventCountry "SRB"]
[SourceTitle "playchess.com"]
[Source "ChessBase"]
[SourceQuality "1"]
[TimeControl "40/5400+30:900+30"]

{[%evp 11,71,18,15,14,23,6,17,0,0,7,14,5,10,14,8,11,25,39,24,16,37,34,20,5,55,14,2,16,0,0,129,119,283,286,268,275,434,413,424,-269,416,398,420,410,481,502,509,497,505,505,487,501,523,509,687,685,663,647,886,883,1383,1322]} 1. e4 {[%emt 0:00:09]} e5 {[%emt 0:00:08]} 2. Nf3 {[%emt 0:00:08]} Nc6 {[%emt 0:00:05]} 3. Bc4 {[%emt 0:00:20]} Nf6 {[%emt 0:00:27]} 4. d3 {[%emt 0:00:13]} Bc5 {[%emt 0:00:10]} 5. O-O {[%emt 0:00:17]} d6 {[%emt 0:00:05]} 6. c3 {[%emt 0:00:17]} a6 {[%emt 0:02:31]} 7. Re1 {[%emt 0:00:33] C54: Giuoco Piano: 4 c3 Nf6, main lines with 5 d4 and 5 d3.} Ba7 {[%emt 0:01:11]} 8. Nbd2 {[%emt 0:00:41]} O-O {[%emt 0:02:32]} 9. Nf1 {[%emt 0:00:22] The position is equal.} Na5 {[%emt 0:01:39]} 10. Bb3 {[%emt 0:00:12]} Nxb3 {[%emt 0:00:06]} 11. axb3 {[%emt 0:00:04]} h6 {[%emt 0:09:40] 11...h6 is setting a new trend.} 12. Ng3 {[%emt 0:00:16]} Re8 {[%emt 0:00:27]} 13. h3 {[%emt 0:01:05] [#]} d5 $146 {[%emt 0:01:50]} ({Predecessor:} 13... Bd7 14. d4 Bc6 15. Qc2 Qe7 16. d5 Bd7 17. b4 c6 18. dxc6 Bxc6 19. c4 Qe6 {1-0 (55) Giri,A (2772)-Santos Latasa,J (2639) Warsaw 2021}) 14. exd5 {[%emt 0:11:53]} Qxd5 {[%emt 0:00:38]} 15. c4 {[%emt 0:00:29]} Qd6 {[%emt 0:03:28]} 16. Be3 {[%emt 0:00:32]} c5 {[%emt 0:15:05]} 17. Nh4 {[%emt 0:19:43]} Bd7 {[%emt 0:18:38]} ({Black should try} 17... Bb8 $11) 18. Nhf5 {[%emt 0:06:54]} (18. Qf3 $5 {[%cal Rf3b7]}) 18... Qc6 {[%emt 0:00:32]} 19. Qd2 {[%emt 0:19:00][%cal Oe3h6]} Bxf5 {[%emt 0:09:49]} 20. Nxf5 {[%emt 0:00:07][%cal Oe3h6]} Re6 {[%emt 0:03:03] [#]} (20... Qd7 $11 21. g4 h5) 21. Bxh6 $1 $40 {[%emt 0:11:11][%mdl 128] Black is in trouble.} gxh6 {[%emt 0:00:10]} (21... g6 $16) 22. Qxh6 $18 {[%emt 0:01:03][%csl Gf5][%cal Rh6g7]} Ne8 {[%emt 0:00:10] Prevents Qg7+.} 23. Qg5+ {[%emt 0:00:08]} Kf8 {[%emt 0:00:08]} (23... Rg6 {was necessary.}) 24. Qh5 {[%emt 0:01:15][%cal Rh5h8]} Rg6 {[%emt 0:02:49][%csl Gg6][%cal Rc6g2] [#]} 25. Qh8+ $1 {[%emt 0:00:53]} Rg8 {[%emt 0:00:18] [#]} 26. Qxg8+ {[%emt 0:00:06][%mdl 576] Deflection, Decoy} Kxg8 {[%emt 0:00:04]} 27. Ne7+ {[%emt 0:00:06]} Kf8 {[%emt 0:00:10]} 28. Nxc6 {[%emt 0:00:07] White is clearly winning.} bxc6 {[%emt 0:00:03]} 29. Rxa6 {[%emt 0:00:44]} Nc7 {[%emt 0:00:18]} 30. Rxc6 {[%emt 0:07:35]} Bb8 {[%emt 0:00:16]} 31. Rxc5 {[%emt 0:00:11]} Ra2 {[%emt 0:00:34]} 32. Rb1 {[%emt 0:03:38]} Na6 {[%emt 0:01:39]} 33. Rc8+ {[%emt 0:00:43]} Ke7 {[%emt 0:00:08]} 34. h4 {[%emt 0:02:51][%cal Bh3h4,Bh4h5][%mdl 32]} Ba7 {[%emt 0:01:21]} 35. h5 {[%emt 0:00:30]} Kf6 {[%emt 0:00:05]} 36. Rg8 {[%emt 0:00:07] Weighted Error Value: White=0.03 (flawless) /Black=0.40} 1-0

[Event "2nd Serbia Open Masters 2022"]
[Site "Novi Sad"]
[Date "2022.06.30"]
[Round "3.26"]
[White "Kovacevic, Aleksandar"]
[Black "Pap, Misa"]
[Result "1/2-1/2"]
[ECO "B51"]
[WhiteElo "2503"]
[BlackElo "2375"]
[Annotator "TA"]
[PlyCount "89"]
[EventDate "2022.06.28"]
[EventType "swiss"]
[EventCountry "SRB"]
[SourceTitle "playchess.com"]
[Source "ChessBase"]
[SourceQuality "1"]
[TimeControl "40/5400+30:900+30"]

{[%evp 16,89,40,33,45,47,32,45,38,28,52,33,50,40,51,43,44,27,56,48,83,83,83,83,83,81,83,81,77,77,77,77,83,79,92,75,99,99,91,62,62,62,62,62,62,62,62,62,71,0,66,59,58,51,51,51,51,51,51,32,54,54,54,54,44,0,56,35,54,0,0,0,11,0,31,0]} 1. e4 {[%emt 0:00:12]} c5 {[%emt 0:00:38]} 2. Nf3 {[%emt 0:00:20]} Nc6 {[%emt 0:00:05]} 3. Bb5 {[%emt 0:00:18]} d6 {[%emt 0:01:02]} 4. O-O {[%emt 0:00:36]} Bd7 {[%emt 0:00:08]} 5. Re1 {[%emt 0:00:33]} Nf6 {[%emt 0:00:20]} 6. c3 {[%emt 0:00:27][%cal Bc2c3,Bc3d4,Bd4d5][%mdl 32]} a6 {[%emt 0:00:04]} 7. Bf1 {[%emt 0:00:31]} Bg4 {[%emt 0:00:26]} 8. d4 {[%emt 0:00:19]} cxd4 {[%emt 0:00:24]} 9. cxd4 {[%emt 0:00:06]} e5 {[%emt 0:00:07] B51: Sicilian: Moscow Variation (3 Bb5+) without 3...Bd7.} 10. d5 {[%emt 0:00:17]} Nd4 {[%emt 0:00:07]} 11. Be3 {[%emt 0:00:17]} Nxf3+ {[%emt 0:02:11]} 12. gxf3 {[%emt 0:00:05]} Bd7 {[%emt 0:00:05]} 13. Nd2 {[%emt 0:00:10][%cal Bb1d2,Bd2c4,Bc4b6,Bb6d7][%mdl 32]} Be7 {[%emt 0:01:38]} 14. Nc4 $1 {[%emt 0:00:26]} O-O {[%emt 0:00:38]} 15. Nb6 {[%emt 0:01:03]} Rb8 {[%emt 0:00:13] [#]} 16. Qc2 $146 {[%emt 0:05:45]} ({Predecessor:} 16. Rc1 Nh5 17. Qc2 Bg5 18. Qc7 Bxe3 19. fxe3 Qg5+ 20. Kh1 Bb5 21. Bg2 Qh4 22. a4 {½-½ (47) Golubov,S (2362)-Kryakvin,D (2544) Moscow 2015}) 16... Ne8 {[%emt 0:23:02]} 17. Rac1 {[%emt 0:03:04]} Bg5 {[%emt 0:04:12] [#] And now ...Bxe3 would win.} 18. Nxd7 {[%emt 0:13:58]} Bxe3 {[%emt 0:00:06]} 19. Nxb8 {[%emt 0:01:23]} (19. Rxe3 $6 Qxd7 20. Rc3 Nf6 $11) 19... Bxc1 {[%emt 0:00:25]} 20. Rxc1 {[%emt 0:04:45] Qc8 is the strong threat.} Qxb8 {[%emt 0:00:23] [#]} 21. Qc8 $1 {[%emt 0:01:57] Prevents Qd8.} Nf6 {[%emt 0:13:51]} 22. Qxb8 {[%emt 0:06:11] White is much more active.} Rxb8 $16 {[%emt 0:02:06][%mdl 4096] Endgame KRB-KRN} 23. b4 {[%emt 0:06:20][%cal Bb2b4,Bb4b5][%mdl 32]} Kf8 {[%emt 0:11:29]} 24. Bh3 {[%emt 0:03:27]} b6 {[%emt 0:00:32]} 25. Rc6 {[%emt 0:02:28]} Ke7 {[%emt 0:02:24]} 26. Rc7+ {[%emt 0:04:28]} Kf8 {[%emt 0:00:42]} 27. Bd7 {[%emt 0:12:46]} a5 {[%emt 0:06:08]} 28. b5 $1 {[%emt 0:00:49]} Nh5 {[%emt 0:06:13]} 29. Kf1 {[%emt 0:05:00]} Nf4 {[%emt 0:01:22]} 30. Ke1 {[%emt 0:00:22]} Nd3+ {[%emt 0:06:55]} 31. Kd2 {[%emt 0:00:11]} Nc5 {[%emt 0:00:05]} 32. Bh3 {[%emt 0:02:19]} (32. h4 $16) 32... g6 {[%emt 0:06:31]} (32... h5 $1 $11) 33. Ke3 $14 {[%emt 0:01:16]} g5 {[%emt 0:02:00]} 34. Bg4 {[%emt 0:02:31]} h6 {[%emt 0:01:57]} 35. Bh5 {[%emt 0:08:25]} Rb7 {[%emt 0:00:01]} 36. Rc8+ {[%emt 0:00:13]} Ke7 $1 {[%emt 0:00:31]} 37. Rh8 {[%emt 0:05:22]} Rc7 {[%emt 0:00:54]} 38. Rh7 $1 {[%emt 0:00:28]} ({Much weaker is} 38. Rxh6 Nb7 $11) 38... Kf8 {[%emt 0:01:22]} 39. Rxh6 {[%emt 0:00:21]} Ke7 {[%emt 0:00:28]} 40. Rh7 {[%emt 0:00:00]} Kf8 {[%emt 0:00:00]} ({Black should try} 40... Kf6 $11) 41. Rh8+ $1 {[%emt 0:13:20]} Ke7 $1 {[%emt 0:00:39]} 42. Rh7 {[%emt 0:06:40]} (42. Kd2 $1 $14) 42... Kf8 $11 {[%emt 0:00:05]} 43. Rh6 {[%emt 0:02:05]} Ke7 {[%emt 0:00:15]} 44. Rh7 {[%emt 0:01:56]} Kf8 {[%emt 0:00:35]} 45. Rh6 {[%emt 0:04:30] Weighted Error Value: White=0.06 (flawless) /Black=0.11 (very precise)} 1/2-1/2